Workbook

Sheet ADA CONSTRUCTION NOV 2020 CAA
A1: DEPARTMENT OF TRANSPORTATION - CALTRANS
A2: DBE Commitment at Award (CAA) on Federally Funded Major Construction Contracts - October 1, 2020 - August 31, 2021
A4: Total Award Amount Year-to-Date (YTD) | C4: Total DBE Commitment Amount YTD | F4: Total Prime Contracts Awarded YTD
A5: 1532557181 | C5: =SUM(C7:C18) -> 243025084.5 | F5: =SUM(C282:C313,I282:I302,F282:F313) -> 142
A6: Groups | C6: Commitment Dollars YTD | D6: Firms YTD | E6: Contracts YTD | F6: % of Contracts | G6: % of DBE $ | H6: % of Total $
A7: Hispanic American Male | C7: =SUMIF(D67:D138,"m", C67:C138) -> 68083519.35 | D7: =COUNTIF(D67:D138,"M") -> 51 | E7: =SUMIF(D67:D138,"M",E67:E138) -> 163 | F7: =E7/E20 -> 0.2421991085 | G7: =C7/C5 -> 0.2801501725 | H7: =C7/A5 -> 0.04442478245
A8: Hispanic American Female | C8: =SUMIF(D67:D138,"F", C67:C138) -> 23605852.21 | D8: =COUNTIF(D67:D138,"F") -> 17 | E8: =SUMIF(D67:D138,"F",E67:E138) -> 99 | F8: =E8/E20 -> 0.147102526 | G8: =C8/C5 -> 0.09713339781 | H8: =C8/A5 -> 0.01540291776
A9: African American Male | C9: =SUMIF(D160:D174,"m", C160:C174) -> 1708723 | D9: =COUNTIF(D160:D174,"M") -> 8 | E9: =SUMIF(D160:D174,"M",E160:E174) -> 14 | F9: =E9/E20 -> 0.02080237741 | G9: =C9/C5 -> 0.007031056089 | H9: =C9/A5 -> 0.001114948937
A10: African American Female | C10: =SUMIF(D160:D174,"F", C160:C174) -> 5540053.28 | D10: =COUNTIF(D160:D174,"F") -> 5 | E10: =SUMIF(D160:D174,"F",E160:E174) -> 19 | F10: =E10/E20 -> 0.02823179792 | G10: =C10/C5 -> 0.02279621995 | H10: =C10/A5 -> 0.003614908044
A11: Asian Pacific Male | C11: =SUMIF(D196:D213,"m", C196:C213) -> 16967513.79 | D11: =COUNTIF(D196:D213,"M") -> 10 | E11: =SUMIF(D196:D213,"M",E196:E213) -> 47 | F11: =E11/E20 -> 0.06983655275 | G11: =C11/C5 -> 0.06981795244 | H11: =C11/A5 -> 0.01107137404
A12: Asian Pacific Female | C12: =SUMIF(D196:D213,"F", C196:C213) -> 8870006.09 | D12: =COUNTIF(D196:D213,"F") -> 7 | E12: =SUMIF(D196:D213,"F",E196:E213) -> 27 | F12: =E12/E20 -> 0.04011887073 | G12: =C12/C5 -> 0.03649831501 | H12: =C12/A5 -> 0.005787716244
A13: Subcontinent Asian Male | C13: =SUMIF(D178:D193,"m", C178:C193) -> 16001885.07 | D13: =COUNTIF(D178:D193,"M") -> 12 | E13: =SUMIF(D178:D193,"M",E178:E193) -> 35 | F13: =E13/E20 -> 0.05200594354 | G13: =C13/C5 -> 0.06584458186 | H13: =C13/A5 -> 0.01044129725
A14: Subcontinent Asian Female | C14: =SUMIF(D178:D193,"F", C178:C193) -> 0 | D14: =COUNTIF(D178:D193,"F") -> 0 | E14: =SUMIF(D178:D193,"F",E178:E193) -> 0 | F14: =E14/E20 -> 0 | G14: =C14/C5 -> 0 | H14: =C14/A5 -> 0
A15: Native American Male | C15: =SUMIF(D141:D157,"m", C141:C157) -> 25604253.42 | D15: =COUNTIF(D141:D157,"M") -> 12 | E15: =SUMIF(D141:D157,"M",E141:E157) -> 49 | F15: =E15/E20 -> 0.07280832095 | G15: =C15/C5 -> 0.1053564223 | H15: =C15/A5 -> 0.01670688294
A16: Native American Female | C16: =SUMIF(D141:D157,"F", C141:C157) -> 2604352 | D16: =COUNTIF(D141:D157,"F") -> 4 | E16: =SUMIF(D141:D157,"F",E141:E157) -> 6 | F16: =E16/E20 -> 0.008915304606 | G16: =C16/C5 -> 0.01071639171 | H16: =C16/A5 -> 0.001699350623
A17: Non Minority Women | C17: =SUMIF(D222:D276,"F", C222:C276) -> 73943381.28 | D17: =COUNTIF(D222:D276,"F") -> 53 | E17: =SUMIF(D222:D276,"F",E222:E276) -> 212 | F17: =E17/E20 -> 0.3150074294 | G17: =C17/C5 -> 0.3042623416 | H17: =C17/A5 -> 0.04824836698
A18: Other Men | C18: =SUMIF(D217:D219,"m", C217:C219) -> 95545 | D18: =COUNTIF(D217:D219,"M") -> 1 | E18: =SUMIF(D217:D219,"M",E217:E219) -> 2 | F18: =E18/E20 -> 0.002971768202 | G18: =C18/C5 -> 0.0003931487163 | H18: =C18/A5 -> 6.234351397e-05
F19: =E19/E20 -> 0 | G19: =C19/C5 -> 0 | H19: =C19/A5 -> 0
A20: Total | D20: =SUM(D7:D19) -> 180 | E20: =SUM(E7:E19) -> 673
A21: Total Primes Contractors | C21: =F5 -> 142
A23: Yellow = DBEs | C23: Green = Trucking | D23: =COUNTIF(B67:B277,43) -> 24 | E23: =SUM(SUMIF(B66:B138,"43",C66:C138),SUMIF(B140:B219,"43",C140:C219),SUMIF(B221:B277,"43",C221:C277)) -> 30430353.62 | F23: =E23/C5 -> 0.125214867
A24: Red = Prime Contractor | C24: Blue = Supplier | D24: =COUNTIF(B67:B277,33) -> 27 | E24: =SUM(SUMIF(B67:B138,"33",C67:C138),SUMIF(B141:B219,"33",C141:C219),SUMIF(B222:B277,"33",C222:C277)) -> 44931971.32 | F24: =E24/C5 -> 0.1848861463
A25: Red Italic = DBE firm as Prime | C25: White = Other | D25: =COUNTIF(B67:B277,-4142) -> 129 | E25: =C5-(E23+E24) -> 167662759.6 | F25: =E25/C5 -> 0.6898989868
A26: BOLD = women
A27: * = Used both as Trucking & Supplier
A66: Hispanic American | B66: Column1 | C66: Dollars | D66: M/F | E66: Count of Contracts | F66: Contract Numbers | G66: Count of Primes | H66: Prime names | I66: Districts
A67: A & M CONSULTING ENGINEERS | B67: -4142 | C67: ='[1]Construction Worksheet'!G12 -> 136110 | D67: M | E67: 7 | F67: =FetchComment(E67) -> 04-2G4604 10-0X5204 01-0B6204 03-4F1714 06-0U4204 04-1J9704 03-2H2404 | G67: 6 | H67: =FetchComment(G67) -> CALIFORNIA HIGHWAY CONSTRUCTION GROUP INC GEORGE REED INC FBD VANGUARD CONSTRUCTION INC SECURITY PAVING COMPANY INC Granite Rock Lamon Construction | I67: 1,3,4,6,10
A68: ABSL CONSTRUCTION | B68: -4142 | C68: ='[1]Construction Worksheet'!G40 -> 1930524 | D68: M | E68: 21 | F68: =FetchComment(E68) -> 05-1H0604 06-0X0404 01-0B6204 01-0G33U4 03-0H4604 10-1E5314 04-269804 06-0Q9204 04-0J5304 10-1C1704 04-2A3324 04-2J7204 07-291404 04-0J5604 04-2K8404 04-1J9704 06-0U5204 08-0E33U4 01-0H4604 05-1K1304 06-0U79U4 | G68: 12 | H68: =FetchComment(G68) -> TEICHERT AND SON GRANITE CONSTRUCTION CALIFORNIA HIGHWAY CONSTRUCTION GROUP O.C. JONES & SONS INC MYERS & SONS CONSTRUCTION FBD VANGUARD CONSTRUCTION GRIFFITH-ATKINSON JV BAY CITIES PAVING & GRADING INC GORDON N BALL INC STACY AND WITBECK INC Granite Rock AMES Construction | I68: 1,3,4,5,6,7,8,10
A69: ACCURATE SAWCUTTING INC | B69: -4142 | C69: ='[1]Construction Worksheet'!C8 -> 18240 | D69: F | E69: 1 | F69: =FetchComment(E69) -> 10-0X5204 | G69: 1 | H69: =FetchComment(G69) -> GEORGE REED | I69: 10
A70: Advantage Demolition and Grading, Inc | B70: -4142 | C70: ='[1]Construction Worksheet'!G44 -> 1218410 | D70: M | E70: 1 | F70: =FetchComment(E70) -> Suyat, Christian@DOT: 07-293604 | G70: 1 | H70: =FetchComment(G70) -> Suyat, Christian@DOT: ORTIZ ENTERPRISES, INC. | I70: 7
A71: AERO-ENVIRONMENTAL CONSULTING | B71: -4142 | C71: ='[1]Construction Worksheet'!G56 -> 38560 | D71: M | E71: 2 | F71: =FetchComment(E71) -> 01-0F4704 04-2A3324 | G71: 2 | H71: =FetchComment(G71) -> MERCER FRASER COMPANY BAY CITIES PAVING & GRADING INC | I71: 1,4
A72: Alfaro Communications Construction | B72: -4142 | C72: ='[1]Construction Worksheet'!G60 -> 2632527.16 | D72: M | E72: 1 | F72: =FetchComment(E72) -> Suyat, Christian@DOT: 12-0Q3104 | G72: 1 | H72: =FetchComment(G72) -> Suyat, Christian@DOT: Alfaro Communications Construction | I72: 12
A73: ALVAREZ AND SHAW INC | B73: -4142 | C73: ='[1]Construction Worksheet'!G65 -> 155160 | D73: M | E73: 1 | F73: =FetchComment(E73) -> 11-427504 | G73: 1 | H73: =FetchComment(G73) -> HMS CONSTRUCTION INC | I73: 11
A74: ARAGON GEOTECHNICAL | B74: -4142 | C74: ='[1]Construction Worksheet'!G72 -> 74980 | D74: M | E74: 1 | F74: =FetchComment(E74) -> 06-0U1004 | G74: 1 | H74: =FetchComment(G74) -> GRANITE CONSTRUCTION COMPANY | I74: 6
A75: AUSTIN ENTERPRISE | B75: -4142 | C75: ='[1]Construction Worksheet'!C26 -> 2784220.53 | D75: F | E75: 14 | F75: =FetchComment(E75) -> 05-1F4904 05-1H0604 10-1C2804 04-3J7004 05-1F5004 07-302404 10-0L8704 04-269804 10-1C5004 10-1C1704 06-0U5204 04-4G2104 05-1J4704 06-0U79U4 | G75: 8 | H75: =FetchComment(G75) -> SOUZA ENGINEERING CONTRACTING TEICHERT AND SON INC SECURITY PAVING COMPANY FBD VANGUARD CONSTRUCTION INC CALPORTLAND CONSTRUCTION GRANITE CONSTRUCTION COMPANY GORDON N.BALL,INC. FEC FUTURE CONTRACTORS AND ENGINEERS, INC. | I75: 4,5,6,7,10
A76: Bellagio Construction | B76: -4142 | C76: ='[1]Construction Worksheet'!G78 -> 59933 | D76: M | E76: 1 | F76: =FetchComment(E76) -> Suyat, Christian@DOT: 06-0T3504 | G76: 1 | H76: =FetchComment(G76) -> Suyat, Christian@DOT: CAL VALLEY CONSTRUCTION, INC. | I76: 6
A77: C & N REINFORCING INC | B77: -4142 | C77: ='[1]Construction Worksheet'!G91 -> 5038799.01 | D77: M | E77: 9 | F77: =FetchComment(E77) -> 01-0G33U4 04-160304 04-269804 04-0J5304 10-1C1704 03-3F5604 04-2A3324 04-0J5604 04-2K8404 | G77: 7 | H77: =FetchComment(G77) -> O.C. JONES & SONS INC VIKING CONSTRUCTION COMPANY FBD VANGUARD CONSTRUCTION TEICHERT & SON INC CALIFORNIA ENGINEERING CONTRACTING BAY CITIES PAVING & GRADING MYERS & SONS CONSTRUCTION INC | I77: 1,3,4,10
A78: CALI CONSTRUCTION | B78: -4142 | C78: ='[1]Construction Worksheet'!G99 -> 1829495 | D78: M | E78: 4 | F78: =FetchComment(E78) -> 11-418104 11-424704 11-412204 11-4116U4 | G78: 2 | H78: =FetchComment(G78) -> PAL GENERAL ENGINEERING DESILVA GATES CONSTRUCTION | I78: 11
A79: CENTRAL COAST TRAFFIC SAFETY | B79: -4142 | C79: ='[1]Construction Worksheet'!G106 -> 166175 | D79: M | E79: 4 | F79: =FetchComment(E79) -> 05-1J7104 05-1C4204 05-1K1004 05-1J4704 | G79: 4 | H79: =FetchComment(G79) -> PAPICH CONSTRUCTION COMPANY CERTIFIED COATINGS COMPANY Lee Wilcon Electric Company, Inc FEC FUTURE CONTRACTORS AND ENGINEERS, INC. | I79: 5
A80: CHAVEZ TRUCKING | B80: 33 | C80: ='[1]Construction Worksheet'!C35 -> 828351.4 | D80: F | E80: 4 | F80: =FetchComment(E80) -> 10-1C2804 10-1E5314 04-2K8404 03-2H6304 | G80: 3 | H80: =FetchComment(G80) -> SECURITY PAVING COMPANY O.C. JONES & SONS INC GRANITE CONSTRUCTION COMPANY | I80: 3,4,10
A81: Clay Miranda Trucking | B81: 33 | C81: ='[1]Construction Worksheet'!C40 -> 74750.36 | D81: F | E81: 1 | F81: =FetchComment(E81) -> Suyat, Christian@DOT: 06-0U79U4 | G81: 1 | H81: =FetchComment(G81) -> Suyat, Christian@DOT: ST. FRANCIS ELECTRIC, LLC | I81: 6
A82: D.B. ELECTRIC INC | B82: -4142 | C82: ='[1]Construction Worksheet'!G116 -> 1482214 | D82: M | E82: 4 | F82: =FetchComment(E82) -> 12-0P0304 12-0Q7904 12-0M82U4 07-2055C4 | G82: 3 | H82: =FetchComment(G82) -> AMERICAN CIVIL CONSTRUCTORS WEST COAST SPECTRUM CONSTRUCTION GROUP INC PAL GENERAL ENGINEERING INC | I82: 7,12
A83: D.C. Drilling, Inc. | B83: -4142 | C83: ='[1]Construction Worksheet'!G120 -> 58800 | D83: M | E83: 1 | F83: =FetchComment(E83) -> Suyat, Christian@DOT: 08-0E33U4 | G83: 1 | H83: =FetchComment(G83) -> Suyat, Christian@DOT: Ames Construction | I83: 8
A84: Don H Mahaffey | B84: -4142 | C84: ='[1]Construction Worksheet'!C45 -> 631680 | D84: F | E84: 1 | F84: =FetchComment(E84) -> Suyat, Christian@DOT: 04-4G2104 | G84: 1 | H84: =FetchComment(G84) -> Suyat, Christian@DOT: GORDON N. BALL, INC. | I84: 4
A85: DOUBLE M TRUCKING | B85: 43 | C85: ='[1]Construction Worksheet'!G136 -> 3018550 | D85: M | E85: 5 | F85: =FetchComment(E85) -> 01-0G33U4 03-0H4604 10-1E5314 03-1F1504 03-3H93U4 | G85: 5 | H85: =FetchComment(G85) -> O.C. JONES & SONS INC MYERS & SONS CONSTRUCTION LLC DESILVA GATES CONSTRUCTION Teichert | I85: 1,3,10
A86: DRAGON MATERIAL TRANSPORT | B86: 33 | C86: ='[1]Construction Worksheet'!C63 -> 6382674.52 | D86: F | E86: 6 | F86: =FetchComment(E86) -> 01-0F6804 10-1C5004 04-2A3324 06-0U4204 04-1J9704 03-2H1104 | G86: 5 | H86: =FetchComment(G86) -> R. BROWN CONSTRUCTION COMPANY SECURITY PAVING COMPANY BAY CITIES PAVING & GRADING INC Granite Rock Construction Company O.C. Jones & Sons | I86: 1,3,4,6,10
A87: DRS REBAR INC | B87: -4142 | C87: ='[1]Construction Worksheet'!G154 -> 199507.45 | D87: M | E87: 4 | F87: =FetchComment(E87) -> 07-317304 07-260804 12-0P94U4 06-0U79U4 | G87: 4 | H87: =FetchComment(G87) -> PETERSON-CHASE GENERAL ENGINEERING COMPANY POWELL CONSTRUCTORS INC GRANITE CONSTRUCTION COMPANY GEORGE REED, INC. | I87: 6,7,12
A88: EIGHTEEN TRUCKING | B88: 43 | C88: ='[1]Construction Worksheet'!C69 -> 41900 | D88: F | E88: 2 | F88: =FetchComment(E88) -> 04-0J5604 05-1K1304 | G88: 2 | H88: =FetchComment(G88) -> MYERS & SONS CONSTRUCTION INC GORDON N. BALL, INC. | I88: 4, 5
A89: ENDEMIC ENVIRONMENTAL | B89: -4142 | C89: ='[1]Construction Worksheet'!G166 -> 335365 | D89: M | E89: 7 | F89: =FetchComment(E89) -> 10-1C2804 01-0G33U4 05-1C4204 10-1E5314 01-0F4704 03-1F1504 08-0E33U4 | G89: 6 | H89: =FetchComment(G89) -> SECURITY PAVING COMPANY CERTIFIED COATINGS COMPANY O.C. JONES & SONS INC MERCER FRASER COMPANY DESILVA GATES CONSTRUCTION AMES Construction | I89: 1,3,5,8,10
A90: FLASH TRAFFIC INC | B90: -4142 | C90: ='[1]Construction Worksheet'!C83 -> 174307 | D90: F | E90: 5 | F90: =FetchComment(E90) -> 05-1H0604 10-0X5204 07-317304 04-4G2104 10-462104 | G90: 5 | H90: =FetchComment(G90) -> TEICHERT AND SON GEORGE REED INC PETERSON CHASE GENERAL ENGINEERING GORDON N. BALL, INC. ST. FRANCIS ELECTRIC, LLC | I90: 4, 5,7,10
A91: FRANK MEDINA GENERAL | B91: 33 | C91: ='[1]Construction Worksheet'!G174 -> 671369 | D91: M | E91: 3 | F91: =FetchComment(E91) -> 01-0G33U4 03-1H8704Z 04-2A3324 | G91: 3 | H91: =FetchComment(G91) -> O.C. JONES & SONS INC APEX FENCE CO INC BAY CITIES PAVING & GRADING INC | I91: 1,3,4
A92: Fresno Concrete | B92: -4142 | C92: ='[1]Construction Worksheet'!G178 -> 94340 | D92: M | E92: 1 | F92: =FetchComment(E92) -> Vu, Can@DOT: 06-0T3504 | G92: 1 | H92: =FetchComment(G92) -> Suyat, Christian@DOT: CAL VALLEY CONSTRUCTION, INC. | I92: 6
A93: FULL TRAFFIC MAINTENANCE INC | B93: 33 | C93: ='[1]Construction Worksheet'!G187 -> 1059542 | D93: M | E93: 3 | F93: =FetchComment(E93) -> 07-317304 07-293604 08-0R5704 | G93: 3 | H93: =FetchComment(G93) -> PETERSON-CHASE GENERAL ENGINEERING COMPANY ORTIZ ENTERPRISES, INC. EVERLEVEL HOLDINGS, LLC | I93: 7,8
A94: G & F CONCRETE CUTTING | B94: -4142 | C94: ='[1]Construction Worksheet'!C92 -> 1332688.5 | D94: F | E94: 4 | F94: =FetchComment(E94) -> 08-0G7904 07-303904 08-1C8504 06-0Q9204 | G94: 3 | H94: =FetchComment(G94) -> SELECT ELECTRIC SECURITY PAVING COMPANY GRANITE CONSTRUCTION COMPANY GRIFFITH-ATKINSON JV | I94: 6,7,8
A95: G & G ELECTRIC | B95: -4142 | C95: ='[1]Construction Worksheet'!G193 -> 1263365 | D95: M | E95: 3 | F95: =FetchComment(E95) -> 07-317304 07-260804 07-4V1004 | G95: 3 | H95: =FetchComment(G95) -> PETERSON-CHASE GENERAL ENGINEERING POWELL CONSTRUCTORS INC O'DONNELL CONSTRUCTION, INC. | I95: 7
A96: GEOSTRUCTURAL ENGINEERING, INC. | B96: -4142 | C96: ='[1]Construction Worksheet'!G199 -> 2825007 | D96: M | E96: 3 | F96: =FetchComment(E96) -> Suyat, Christian@DOT: 08-0E33U4 05-1K1304 07-293604 | G96: 3 | H96: =FetchComment(G96) -> Suyat, Christian@DOT: Ames Construction GORDON N. BALL, INC. ORTIZ ENTERPRISES, INC. | I96: 5,7,8
A97: IBARRA GENERAL ENGINEERING | B97: -4142 | C97: ='[1]Construction Worksheet'!G218 -> 381900 | D97: M | E97: 1 | F97: =FetchComment(E97) -> 10-0Y6004 | G97: 1 | H97: =FetchComment(G97) -> IBARRA GENERAL ENGINEERING | I97: 10
A98: IBARRA TRUCKING | B98: 43 | C98: ='[1]Construction Worksheet'!G224 -> 55184 | D98: M | E98: 1 | F98: =FetchComment(E98) -> 04-0J5604 | G98: 1 | H98: =FetchComment(G98) -> MYERS & SONS CONSTRUCTION INC | I98: 4
A99: HIGH LIGHT ELECTRIC INC | B99: -4142 | C99: ='[1]Construction Worksheet'!G212 -> 4384165 | D99: M | E99: 5 | F99: =FetchComment(E99) -> 10-0L8704 10-1C1704 06-360244 09-366604 05-1H8504 | G99: 4 | H99: =FetchComment(G99) -> SECURITY PAVING COMPANY TEICHERT & SON INC EVERLEVEL HOLDINGS, LLC A.M. Concrete | I99: 5,6,10
A100: J TORRES COMPANY | B100: -4142 | C100: ='[1]Construction Worksheet'!C101 -> 666294 | D100: F | E100: 4 | F100: =FetchComment(E100) -> 07-291404 08-0R5704 03-2H1104 05-1H8504 | G100: 4 | H100: =FetchComment(G100) -> STACY & WITBECK INC EVERLEVEL HOLDINGS, LLC O.C. Jones & Sons A.M. Concrete | I100: 7,8
A101: JESMAR CONSTRUCTION | B101: -4142 | C101: ='[1]Construction Worksheet'!G231 -> 300000 | D101: M | E101: 1 | F101: =FetchComment(E101) -> 11-427504 | G101: 1 | H101: =FetchComment(G101) -> HMS CONSTRUCTION INC | I101: 11
A102: KODIAK TRUCKING INC | B102: 43 | C102: ='[1]Construction Worksheet'!G245 -> 9127877 | D102: M | E102: 5 | F102: =FetchComment(E102) -> 06-0X0404 06-0Q9204 06-0U4204 06-360244 05-1H8504 | G102: 4 | H102: =FetchComment(G102) -> GRANITE CONSTRUCTION COMPANY GRIFFITH ATKINSON JV SECURITY PAVING COMPANY INC A.M. Concrete | I102: 5,6
A103: L.S. TRUCKING | B103: 43 | C103: ='[1]Construction Worksheet'!G250 -> 320730 | D103: M | E103: 2 | F103: =FetchComment(E103) -> 04-2G4604 01-0B6204 | G103: 1 | H103: =FetchComment(G103) -> CALIFORNIA HIGHWAY CONSTRUCTION | I103: 1,4
A104: LOGISTICAL ENTERPRISES | B104: -4142 | C104: ='[1]Construction Worksheet'!C113 -> 1859021.15 | D104: F | E104: 8 | F104: =FetchComment(E104) -> 06-0S5104 06-0U4204 10-0Y6004 04-3K3104 04-3K3304 06-0T3504 03-2H2404 04-0J4704 | G104: 7 | H104: =FetchComment(G104) -> GRIFFITH COMPANY SECURITY PAVING COMPANY INC IBARRA GENERAL ENGINEERING INC St. Francis Electric, LLC CAL VALLEY CONSTRUCTION, INC. Lamon Construction CAL STRIPE, INC. | I104: 4,6,10
A105: LONE STAR LANDSCAPE | B105: -4142 | C105: ='[1]Construction Worksheet'!G256 -> 62330 | D105: M | E105: 2 | F105: =FetchComment(E105) -> 03-4F1714 04-0J4704 | G105: 2 | H105: =FetchComment(G105) -> FBD VANGUARD CONSTRUCITON INC STANCE CONSTRUCTION COMPANY | I105: 3,4
A106: M & S ENVIRONMENTAL | B106: 33 | C106: ='[1]Construction Worksheet'!G265 -> 320387.7 | D106: M | E106: 3 | F106: =FetchComment(E106) -> 01-0C5704 01-0F4704 01-0F6804 | G106: 2 | H106: =FetchComment(G106) -> MERCER FRASER COMPANY R BROWN CONSTRUCTION COMPANY | I106: 1
A107: MADERA CONCRETE COMPANY INC | B107: -4142 | C107: ='[1]Construction Worksheet'!G271 -> 35302.5 | D107: M | E107: 1 | F107: =FetchComment(E107) ->  | G107: 1 | H107: =FetchComment(G107) ->  | I107: 10
A108: MANERI TRAFFIC CONTROL | B108: -4142 | C108: ='[1]Construction Worksheet'!C138 -> 4138767.25 | D108: F | E108: 17 | F108: =FetchComment(E108) -> 08-1L5904 12-0S0404 07-260804 08-1E0604 11-424704 08-1F7304 11-427504 07-288304 07-4V0104 08-0E33U4 08-0E33U4 12-0Q6504 11-412204 05-1H8504 05-1K8504 07-2055C4 11-411404 | G108: 15 | H108: =FetchComment(G108) -> POWELL CONSTRUCTION SULLY MILLER CONTRACTING COMPANY PAL GENERAL ENGINEERING INC SECURITY PAVING COMPANY HMS CONSTRUCTION INC CHUMO CONSTRUCTION INC YAKAR AMES Construction International Line Builders, Inc. dba ILB Electric BEADOR CONSTRUCTION COMPANY, INC. AMERICAN CIVIL CONSTRUCTORS WEST COAST LLC A.M. Concrete, Inc. SPECTRUMCONSTRUCTIONGROUPINC. GRANITE CONSTRUCTION COMPANY ST. FRANCIS ELECTRIC, LLC | I108: 3,5,7,8,11,12
A109: MANERI TRAFFIC CONTROL | B109: -4142 | C109: ='[1]Construction Worksheet'!G293 -> 7041053.6 | D109: M | E109: 11 | F109: =FetchComment(E109) -> 08-0G7904 08-1G0104 11-429704 07-302404 07-303904 08-1C8504 11-419304 12-0P0304 12-0Q7904 11-080284 07-332604 | G109: 7 | H109: =FetchComment(G109) -> SELECT ELECTRIC INC GRANITE CONSTRUCTION SECURITY PAVING COMPANY INC HAZARD CONSTRUCTION COMPANY AMERICAN CIVIL CONSTRUCTORS WEST COAST SPECTRUM CONSTRUCTION GROUP CHUMO CONSTRUCTION INC | I109: 7,8,11,12
A110: MIRANDA LOGISTICS ENTERPRISE LLC | B110: -4142 | C110: ='[1]Construction Worksheet'!G300 -> 395382.4 | D110: M | E110: 2 | F110: =FetchComment(E110) -> Suyat, Christian@DOT: 07-260804 08-0E33U4 | G110: 2 | H110: =FetchComment(G110) -> Suyat, Christian@DOT: AMES CONSTRUCTION, INC. POWELL CONSTRUCTORS INC | I110: 7, 8
A111: MJD ENGINEERING | B111: -4142 | C111: ='[1]Construction Worksheet'!G308 -> 1211319.07 | D111: M | E111: 2 | F111: =FetchComment(E111) -> 03-1F1504 03-2H6304 | G111: 1 | H111: =FetchComment(G111) -> DESILVA GATES CONSTRUCTION | I111: 3
A112: MONZON & SON ENTERPRISES INC | B112: 43 | C112: ='[1]Construction Worksheet'!G320 -> 3121120 | D112: M | E112: 3 | F112: =FetchComment(E112) -> 08-1G0104 07-303904 08-1F7304 | G112: 2 | H112: =FetchComment(G112) -> GRANITE CONSTRUCTION SECURITY PAVING COMPANY INC | I112: 7,8
A113: MORALES CONTRACTING SERVICES | B113: -4142 | C113: ='[1]Construction Worksheet'!G326 -> 4171597.06 | D113: M | E113: 1 | F113: =FetchComment(E113) -> 08-1C0824 | G113: 1 | H113: =FetchComment(G113) -> FISHER SAND & GRAVEL CO | I113: 8
A114: PG CUTTING SERVICES | B114: -4142 | C114: ='[1]Construction Worksheet'!G354 -> 1081009 | D114: M | E114: 2 | F114: =FetchComment(E114) -> 08-1F1434 08-0E33U4 | G114: 2 | H114: =FetchComment(G114) -> MYERS & SONS CONSTRUCTION AMES construction | I114: 8
A115: PRE-CON PRODUCTS LTD | B115: -4142 | C115: ='[1]Construction Worksheet'!G365 -> 480676.23 | D115: M | E115: 3 | F115: =FetchComment(E115) -> 12-0P0304 06-0U4204 07-288304 | G115: 3 | H115: =FetchComment(G115) -> AMERICAN CIVIL CONSTRUCTORS WEST COAST SECURITY PAVING COMPANY INC CHUMO CONSTRUCTION INC | I115: 6,7,12
A116: PREMIER VALLEY TRANSPORT | B116: 43 | C116: ='[1]Construction Worksheet'!G373 -> 910693 | D116: M | E116: 2 | F116: =FetchComment(E116) -> 06-442554 06-0U1004 | G116: 1 | H116: =FetchComment(G116) -> GRANITE CONSTRUCTION COMPANY | I116: 6
A117: PTM General Engineering | B117: -4142 | C117: ='[1]Construction Worksheet'!C142 -> 2619507.5 | D117: F | E117: 1 | F117: =FetchComment(E117) -> Suyat, Christian@DOT: 04-3K3504 | G117: 1 | H117: =FetchComment(G117) -> Suyat, Christian@DOT: PTM GENERAL ENGINEERING SERVICES, INC. | I117: 4
A118: QA CONSTRUCTORS | B118: -4142 | C118: ='[1]Construction Worksheet'!G380 -> 482175 | D118: M | E118: 1 | F118: =FetchComment(E118) -> 03-4F1714 | G118: 1 | H118: =FetchComment(G118) -> FBD VANGUARD CONSTRUCTION INC | I118: 3
A119: QUALITY TRAFFIC CONTROL | B119: -4142 | C119: ='[1]Construction Worksheet'!G386 -> 29500 | D119: M | E119: 1 | F119: =FetchComment(E119) -> 11-419304 | G119: 1 | H119: =FetchComment(G119) -> HAZARD CONSTRUCTION COMPANY | I119: 11
A120: ROBINSON SWEEPING INC | B120: 43 | C120: ='[1]Construction Worksheet'!C161 -> 1048945 | D120: F | E120: 8 | F120: =FetchComment(E120) -> 10-0X5204 10-1C0404 10-1C2804 01-0C5704 10-1C1704 06-0U5204 06-0U79U4 10-462104 | G120: 6 | H120: =FetchComment(G120) -> GEORGE REED INC TEICHERT & SON INC SECURITY PAVING COMPANY MERCER FRASER COMPANY Granite Construction DESILVA GATES CONSTRUCTION | I120: 1,6, 10
A121: Rock Structure Construction | B121: -4142 | C121: ='[1]Construction Worksheet'!G391 -> 26350 | D121: M | E121: 1 | F121: =FetchComment(E121) -> Suyat, Christian@DOT: 07-293604 | G121: 1 | H121: =FetchComment(G121) -> Suyat, Christian@DOT: ORTIZ ENTERPRISES, INC. | I121: 7
A122: S & S TRUCKING | B122: 43 | C122: ='[1]Construction Worksheet'!G415 -> 659095 | D122: M | E122: 3 | F122: =FetchComment(E122) -> 04-0J5304 04-2A3324 04-2J7204 | G122: 3 | H122: =FetchComment(G122) -> O.C. JONES & SONS BAY CITIES PAVING & GRADING INC GORDON N BALL INC | I122: 4
A123: STATEWIDE STRIPES INC | B123: -4142 | C123: ='[1]Construction Worksheet'!G421 -> 55164.5 | D123: M | E123: 1 | F123: =FetchComment(E123) -> 11-418104 | G123: 1 | H123: =FetchComment(G123) -> PAL GENERAL ENGINEERING | I123: 11
A124: SWPPQUEEN | B124: -4142 | C124: ='[1]Construction Worksheet'!C166 -> 174755 | D124: F | E124: 2 | F124: =FetchComment(E124) -> Suyat, Christian@DOT: 03-3H93U4 03-2H6304 | G124: 2 | H124: =FetchComment(G124) -> Suyat, Christian@DOT: Teichert STANCE CONSTRUCTION COMPANY | I124: 3
A125: T.D.W. CONSTRUCTION INC | B125: -4142 | C125: ='[1]Construction Worksheet'!G436 -> 486483.65 | D125: M | E125: 1 | F125: =FetchComment(E125) -> 04-160304 | G125: 1 | H125: =FetchComment(G125) -> VIKING CONSTRUCTION COMPANY | I125: 4
A126: Terra West | B126: -4142 | C126: ='[1]Construction Worksheet'!G426 -> 9000 | D126: M | E126: 1 | F126: =FetchComment(E126) -> Suyat, Christian@DOT: 11-4116U4 | G126: 1 | H126: =FetchComment(G126) -> Suyat, Christian@DOT: GRANITE CONSTRUCTION COMPANY | I126: 11
A127: TREESMITH ENTERPRISES INC | B127: -4142 | C127: ='[1]Construction Worksheet'!C173 -> 284000 | D127: F | E127: 1 | F127: =FetchComment(E127) -> 08-1C8504 | G127: 1 | H127: =FetchComment(G127) -> GRANITE CONSTRUCTION COMPANY | I127: 8
A128: TULLY INC | B128: -4142 | C128: ='[1]Construction Worksheet'!C198 -> 545750 | D128: F | E128: 20 | F128: =FetchComment(E128) -> 01-0F4704 03-0H4604 07-317304 10-1E5314 10-1C5004 04-0J5304 10-1C1704 03-1F1504 03-2H0004 04-2J7204 04-0J5604 04-2K8404 04-4J4204 04-2J8024 01-0H4604 04-4G2104 05-1K1304 03-0J8804 03-2H1104 04-0J4704 | G128: 13 | H128: =FetchComment(G128) -> MERCER FRASER COMPANY MYERS & SONS CONSTRUCTION LLC PETERSON CHASE GENERAL ENGINEERING CONSTRUCTION INC O.C. JONES & SONS INC SECURITY PAVING COMPANY INC TEICHERT & SON INC DESILVA GATES CONSTRUCTION NEIL'S CONTROLLED BLASTING LP GORDON N BALL INC MAGGIORA & GHILOTTI INC F D Thomas, Inc. GRANITE CONSTRUCTION COMPANY PAL GENERAL ENGINEERING INC | I128: 1,3,4,5,7,10
A129: UNIVERSAL CONCRETE CONSTRUCTION | B129: -4142 | C129: ='[1]Construction Worksheet'!G443 -> 1268692.02 | D129: M | E129: 2 | F129: =FetchComment(E129) -> 08-1F7304 08-0E33U4 | G129: 2 | H129: =FetchComment(G129) -> SECURITY PAVING COMPANY INC AMES Construction, Inc. | I129: 8
A130: VALDIVIA TRUCKING | B130: 43 | C130: ='[1]Construction Worksheet'!G457 -> 587390 | D130: M | E130: 6 | F130: =FetchComment(E130) -> 01-0G33U4 01-0G33U4 04-0J5304 04-2K8404 04-4J4204 01-0H4604 | G130: 3 | H130: =FetchComment(G130) -> O.C. JONES & SONS INC MAGGIORA & GHILOTTI INC GRANITE CONSTRUCTION COMPANY | I130: 1,4
A131: Vintage Paving Company | B131: -4142 | C131: ='[1]Construction Worksheet'!G461 -> 810500 | D131: M | E131: 1 | F131: =FetchComment(E131) -> Suyat, Christian@DOT: 03-0J9004 | G131: 1 | H131: =FetchComment(G131) -> Suyat, Christian@DOT: AMERICAN CIVIL CONSTRUCTORS WEST COAST LLC | I131: 3
A132: WEST PACIFIC CONCRETE | B132: -4142 | C132: ='[1]Construction Worksheet'!G469 -> 247845 | D132: M | E132: 1 | F132: =FetchComment(E132) -> 08-1E0604 | G132: 1 | H132: =FetchComment(G132) -> SULLY MILLER CONTRACTING COMPANY | I132: 8
A133: WESTERN TRAFFIC SUPPLY | B133: -4142 | C133: ='[1]Construction Worksheet'!G481 -> 4685815 | D133: M | E133: 8 | F133: =FetchComment(E133) -> 04-269804 04-2A3324 04-2J7204 06-0U4204 04-0J5604 04-1J9704 04-2J8014 04-0J4704 | G133: 8 | H133: =FetchComment(G133) -> BAY CITIES PAVING & GRADING INC GORDON N BALL INC SECURITY PAVING COMPANY FBD VANGUARD CONSTRUCTION MYERS & SONS CONSTRUCTION LLC Granite Rock Company Certified Coatings Company ST. FRANCIS ELECTRIC, LLC | I133: 4,6
A134: ZABEL ENTERPRISES | B134: 43 | C134: ='[1]Construction Worksheet'!G490 -> 1046050 | D134: M | E134: 3 | F134: =FetchComment(E134) -> 01-0C5704 01-0F4704 01-0C4504 | G134: 1 | H134: =FetchComment(G134) -> MERCER-FRASER COMPANY | I134: 1
A140: Native American | B140: Column1 | C140: Dollars | D140: M/F | E140: Count of Contracts | F140: Contract Numbers | G140: Count of Primes | H140: Prime names | I140: Districts
A141: AGEE CONSTRUCTION CORPORATION | B141: -4142 | C141: ='[1]Construction Worksheet'!K8 -> 125032 | D141: F | E141: 1 | F141: =FetchComment(E141) -> 10-1J3004 | G141: 1 | H141: =FetchComment(G141) -> AGEE CONSTRUCTION CORPORATION | I141: 10
A142: DIABLED AMERICAN VETERAN | B142: 33 | C142: ='[1]Construction Worksheet'!O12 -> 1820337.35 | D142: M | E142: 6 | F142: =FetchComment(E142) -> 05-1J7104 06-0X0404 10-1C0404 06-0Q9204 06-0S5104 06-0X5204 | G142: 5 | H142: =FetchComment(G142) -> PAPICH CONSTRUCTION COMPANY GRANITE CONSTRUCTION TEICHERT & SON GRIFFITH-ATKINSON JV GRIFFITH COMPANY | I142: 5,6,10
A143: FDT STRUCTURAL SPECIALTIES | B143: -4142 | C143: ='[1]Construction Worksheet'!O17 -> 310413 | D143: M | E143: 1 | F143: =FetchComment(E143) -> 04-0J5304 | G143: 1 | H143: =FetchComment(G143) ->  | I143: 4
A144: FORCE TRAFFIC CONTROL | B144: -4142 | C144: ='[1]Construction Worksheet'!O29 -> 698000 | D144: M | E144: 4 | F144: =FetchComment(E144) -> 10-0X5204 10-1C0404 06-0U1004 10-462104 | G144: 3 | H144: =FetchComment(G144) -> GEORGE REED INC TEICHERT & SON INC GRANITE CONSTRUCTION COMPANY | I144: 6,10
A145: G R SUNDBERG INC | B145: -4142 | C145: ='[1]Construction Worksheet'!O35 -> 168696.7 | D145: M | E145: 3 | F145: =FetchComment(E145) -> 01-0F6804 01-0G33U4 01-0H4604 | G145: 3 | H145: =FetchComment(G145) -> R.BROWN CONSTRUCTION COMPANY INC O.C. JONES& SONS INC GRANITE CONSTRUCTION COMPANY | I145: 1
A146: GLOBAL TRANSLOADING | B146: -4142 | C146: ='[1]Construction Worksheet'!K14 -> 640443 | D146: F | E146: 3 | F146: =FetchComment(E146) -> 07-288304 05-1J4704 07-293604 | G146: 3 | H146: =FetchComment(G146) -> CHUMO CONSTRUCTION INC FEC FUTURE CONTRACTORS AND ENGINEERS, INC. ORTIZ ENTERPRISES, INC. | I146: 7
A147: KRC SAFETY CO INC | B147: 33 | C147: ='[1]Construction Worksheet'!O56 -> 3162475 | D147: M | E147: 14 | F147: =FetchComment(E147) -> 05-1J7104 06-0X0404 05-1F5004 06-0Y0304 03-0H7204 03-1H8704 04-0J5604 04-3J0504 05-1K8604 06-0U0404 10-1C3704 06-0U5204 09-367704 10-1C7604 | G147: 12 | H147: =FetchComment(G147) -> PAPICH CONSTRUCTION COMPANY GRANITE CONSTRUCTION COMPANY CALPORTLAND CONSTRUCTION BUSH ENGINEERING INC HIGHWAY SPECIALTY COMPANY INC APEX FENCE CO INC MYERS & SONS CONSTRUCTION LLC TENNYSON ELECTRIC INC SPECIALIZED PAVEMENT MARKING INC MIDSTATE BARRIER Danny C. Hubbs construction, Inc. Lee Wilson Electric Company, Inc | I147: 3,4,5,6,9,10
A148: MCCULLOUGH CONSTRUCTION INC | B148: -4142 | C148: ='[1]Construction Worksheet'!O62 -> 12352680.4 | D148: M | E148: 2 | F148: =FetchComment(E148) -> 02-4F2204 01-0G2104 | G148: 1 | H148: =FetchComment(G148) -> MCCULLOUGH CONSTRUCTION INC | I148: 2
A149: S.T. RHOADES CONSTRUCTION | B149: -4142 | C149: ='[1]Construction Worksheet'!O70 -> 5873857 | D149: M | E149: 3 | F149: =FetchComment(E149) -> 01-0C5704 01-0C6604 03-0H7204 | G149: 3 | H149: =FetchComment(G149) -> MERCER FRASER COMPANY S.T. RHOADES CONSTRUCTION INC HIGHWAY SPECIALTY COMPANY INC | I149: 1,3
A150: SAM'S EQUIPMENT & SUPPLIES | B150: 33 | C150: ='[1]Construction Worksheet'!O89 -> 710881.97 | D150: M | E150: 10 | F150: =FetchComment(E150) -> 10-1C2804 01-0B6204 01-0G33U4 07-303904 10-0L8704 11-424604 09-360704 05-1K1004 05-1J4704 06-0U79U4 | G150: 8 | H150: =FetchComment(G150) -> SECURITY PAVING COMPANY CALIFORNIA HIGHWAY CONSTRUCTION GROUP O.C. JONES AND SONS INC S & B ENGINEERING INC POWELL CONSTRUCTORS INC Lee Wilson Electric Company, Inc FEC FUTURE CONTRACTORS AND ENGINEERS, INC. GRANITE CONSTRUCTION | I150: 1,5,6,7,9,10,11
A151: SHORE-TEK | B151: -4142 | C151: ='[1]Construction Worksheet'!O95 -> 34468 | D151: M | E151: 1 | F151: =FetchComment(E151) -> 05-1E0104 | G151: 1 | H151: =FetchComment(G151) -> SPECIALTY CONSTRUCTION IN | I151: 5
A152: SKILLIE CONSTRUCTORS | B152: -4142 | C152: ='[1]Construction Worksheet'!K18 -> 278621 | D152: F | E152: 1 | F152: =FetchComment(E152) -> Suyat, Christian@DOT: 04-2J8024 | G152: 1 | H152: =FetchComment(G152) -> Suyat, Christian@DOT: F D Thomas | I152: 4
A153: TOTAL TRAFFIC CONTROL | B153: 33 | C153: ='[1]Construction Worksheet'!O104 -> 427344 | D153: M | E153: 3 | F153: =FetchComment(E153) -> 04-3J7104 10-0L8704 04-2J8024 | G153: 3 | H153: =FetchComment(G153) -> GRANITE ROCK COMPANY SECURITY PAVING COMPANY INC F D Thomas, Inc. | I153: 4,10
A154: TRINITY VALLEY CONSULTING | B154: -4142 | C154: ='[1]Construction Worksheet'!O111 -> 25100 | D154: M | E154: 1 | F154: =FetchComment(E154) -> 01-0F6804 | G154: 1 | H154: =FetchComment(G154) -> R BROWN CONSTRUCTION COMPANY INC | I154: 1
A155: WEST COAST DRILLING | B155: -4142 | C155: ='[1]Construction Worksheet'!K23 -> 1560256 | D155: F | E155: 1 | F155: =FetchComment(E155) -> 09-360704 | G155: 1 | H155: =FetchComment(G155) -> POWELL CONSTRUCTORS INC | I155: 9
A156: WILLOW HAWK INC | B156: -4142 | C156: ='[1]Construction Worksheet'!O116 -> 20000 | D156: M | E156: 1 | F156: =FetchComment(E156) -> 01-0F6804 | G156: 1 | H156: =FetchComment(G156) -> R BROWN CONSTRUCTION COMPANY INC | I156: 1
A159: African American | B159: Column1 | C159: Dollars | D159: M/F | E159: Count of Contracts | F159: Contract Numbers | G159: Count of Primes | H159: Prime names | I159: Districts
A160: ALLUVION BIOLOGICAL CONSULTING | B160: -4142 | C160: ='[1]Construction Worksheet'!W10 -> 215330 | D160: M | E160: 3 | F160: =FetchComment(E160) -> 03-0H4604 09-360704 03-3H93U4 | G160: 3 | H160: =FetchComment(G160) -> MYERS & SONS CONSTRUCTION LLC POWELL CONSTRUCTORS INC Teichert & Son | I160: 3,9
A161: American Traffic Barricade & Safety Company | B161: -4142 | C161: ='[1]Construction Worksheet'!W14 -> 42575 | D161: M | E161: 1 | F161: =FetchComment(E161) -> Suyat, Christian@DOT: 05-1J4704 | G161: 1 | H161: =FetchComment(G161) -> Suyat, Christian@DOT: FEC FUTURE CONTRACTORS AND ENGINEERS, INC. | I161: 5
A162: APPIAN UDBE SWPPPS | B162: -4142 | C162: ='[1]Construction Worksheet'!S15 -> 13150 | D162: F | E162: 6 | F162: =FetchComment(E162) -> 01-0G4304 06-0X0404 01-0C4504 06-0X5204 04-4J4204 05-1K1004 | G162: 6 | H162: =FetchComment(G162) -> REGE CONSTRUCTION GRANITE CONSTRUCTION MERCER FRASER COMPANY GRIFFITH COMPANY MAGGIORA & GHILOTTI INC Lee Wilson Electric Company, Inc. | I162: 1,4,5,6
A163: BLACK DIAMOND ASPHALT INC | B163: 33 | C163: ='[1]Construction Worksheet'!S31 -> 5503689 | D163: F | E163: 10 | F163: =FetchComment(E163) -> 08-1G0104 10-0X5204 10-1C0404 01-0C5704 01-0G33U4 10-1C1704 03-1F1504 01-0H4604 03-3H93U4 10-462104 | G163: 6 | H163: =FetchComment(G163) -> GRANITE CONSTRUCTION COMPANY GEORGE REED INC TEICHERT & SON INC MERCER-FRASER COMPANY O.C. JONES & SONS INC DESILVA GATES CONSTRUCTION | I163: 1,3,8,10
A164: CGO CONSTRUCTION | B164: -4142 | C164: ='[1]Construction Worksheet'!W19 -> 142900 | D164: M | E164: 2 | F164: =FetchComment(E164) -> 12-0P94U4 08-1F7304 | G164: 2 | H164: =FetchComment(G164) -> GRANITE CONSTRUCTION COMPANY SECURITY PAVING COMPANY INC | I164: 8,12
A165: DAVIDSON & MORRIS DBE SERVICES | B165: -4142 | C165: ='[1]Construction Worksheet'!S36 -> 2730 | D165: F | E165: 1 | F165: =FetchComment(E165) -> 08-0G7904 | G165: 1 | H165: =FetchComment(G165) -> SELECT ELECTRIC | I165: 8
A166: DOUBLE G'S SUPPLY INC | B166: 33 | C166: ='[1]Construction Worksheet'!S41 -> 2018.28 | D166: F | E166: 1 | F166: =FetchComment(E166) -> 03-1H8404 | G166: 1 | H166: =FetchComment(G166) -> GRANITE CONSTRUCTION COMPANY | I166: 3
A167: E-NOR INNOVATIONS INC | B167: -4142 | C167: ='[1]Construction Worksheet'!W29 -> 677450 | D167: M | E167: 3 | F167: =FetchComment(E167) -> 11-424604 07-291404 12-0P94U4 | G167: 3 | H167: =FetchComment(G167) -> S & B ENGINEERING INC STACY AND WITBECK INC GRANITE CONSTRUCTION COMPANY | I167: 7,11,12
A168: K & G CONCRETE PUMPING | B168: -4142 | C168: ='[1]Construction Worksheet'!W35 -> 21840 | D168: M | E168: 2 | F168: =FetchComment(E168) -> 04-2A3324 04-4G2104 | G168: 2 | H168: =FetchComment(G168) -> BAY CITIES PAVING & GRADING INC GORDON N. BALL, INC. | I168: 4
A169: Marvella Steel Placers | B169: -4142 | C169: ='[1]Construction Worksheet'!S45 -> 18466 | D169: F | E169: 1 | F169: =FetchComment(E169) -> Suyat, Christian@DOT: 12-0S0404 | G169: 1 | H169: =FetchComment(G169) -> Suyat, Christian@DOT: BEADOR CONSTRUCTION COMPANY, INC. | I169: 12
A170: PCA TRUCKING LLC | B170: 43 | C170: ='[1]Construction Worksheet'!W41 -> 461125 | D170: M | E170: 1 | F170: =FetchComment(E170) -> 11-080284 | G170: 1 | H170: =FetchComment(G170) -> SPECTRUM CONSTRUCTION | I170: 11
A171: Sierra Engineering & Environmental Services | B171: -4142 | C171: ='[1]Construction Worksheet'!W46 -> 22895 | D171: m | E171: 1 | F171: =FetchComment(E171) -> Suyat, Christian@DOT: 03-2H1104 | G171: 1 | H171: =FetchComment(G171) -> Suyat, Christian@DOT: O.C. Jones & Sons | I171: 3
A172: WCS PROTECTION SERVICES | B172: -4142 | C172: ='[1]Construction Worksheet'!W54 -> 124608 | D172: M | E172: 1 | F172: =FetchComment(E172) -> 05-1C4204 | G172: 1 | H172: =FetchComment(G172) -> CERTIFIED COATINGS COMPANY | I172: 5
A177: Sub Cont Asian | B177: Column1 | C177: Dollars | D177: M/F | E177: Count of Contracts | F177: Contract Numbers | G177: Count of Primes | H177: Prime names | I177: Districts
A178: 101 TRUCKING | B178: 43 | C178: ='[1]Construction Worksheet'!AE7 -> 37440 | D178: M | E178: 1 | F178: =FetchComment(E178) -> 05-1H0604 | G178: 1 | H178: =FetchComment(G178) -> TEICHERT AND SON | I178: 5
A179: ALL CITY TRUCKING | B179: 33 | C179: ='[1]Construction Worksheet'!AE25 -> 5846611.8 | D179: M | E179: 11 | F179: =FetchComment(E179) -> 10-1C2804 10-0L8704 04-4J7304 04-269804 10-1C5004 04-0J5304 04-4J3904 04-2A3324 05-1F9204 04-2K8404 04-3J0504 | G179: 7 | H179: =FetchComment(G179) -> SECURITY PAVING COMPANY TEICHERT AND SON FBD VANGUARD CONSTRUCTION O.C. JONES & SONS INC BAY CITIES PAVING & GRADING DISNEY CONSTRUCTION INC TENNYSON ELECTRIC INC | I179: 4,5,10
A180: AMERICA PACIFIC CONSTRUCTION | B180: -4142 | C180: ='[1]Construction Worksheet'!AE30 -> 145080 | D180: M | E180: 1 | F180: =FetchComment(E180) -> 04-4J0804 | G180: 1 | H180: =FetchComment(G180) -> AMERICAN PACIFIC CONSTRUCTION | I180: 4
A181: COMPREHENSIVE SECURITY SERVICES, INC. | B181: -4142 | C181: ='[1]Construction Worksheet'!AE34 -> 270528 | D181: M | E181: 1 | F181: =FetchComment(E181) -> Suyat, Christian@DOT: 04-2J8014 | G181: 1 | H181: =FetchComment(G181) -> Suyat, Christian@DOT: Certified Coatings Company | I181: 4
A182: DESTINATION ANYWHERE INC | B182: 33 | C182: ='[1]Construction Worksheet'!AE45 -> 529363.55 | D182: M | E182: 4 | F182: =FetchComment(E182) -> 10-0X5204 10-1C0404 10-1C2804 10-462104 | G182: 3 | H182: =FetchComment(G182) -> GEORGE REED INC TEICHERT & SON INC SECURITY PAVING COMPANY | I182: 10
A183: DREAMBUILDER | B183: -4142 | C183: ='[1]Construction Worksheet'!AE55 -> 6518079.8 | D183: M | E183: 3 | F183: =FetchComment(E183) -> 05-1G9904 08-1G0004 08-1J0204 | G183: 1 | H183: =FetchComment(G183) -> DREAMBUILDER CONSTRUCITON | I183: 5,8
A184: Golden Apple Express, Inc | B184: 43 | C184: ='[1]Construction Worksheet'!AE59 -> 17000 | D184: M | E184: 1 | F184: =FetchComment(E184) -> Suyat, Christian@DOT: 05-1K1304 | G184: 1 | H184: =FetchComment(G184) -> Suyat, Christian@DOT: GORDON N. BALL, INC. | I184: 5
A185: HEIR & SON CONSTRUCTION | B185: -4142 | C185: ='[1]Construction Worksheet'!AE66 -> 6858.5 | D185: M | E185: 1 | F185: =FetchComment(E185) -> 04-0J5604 | G185: 1 | H185: =FetchComment(G185) -> MYERS & SONS INC | I185: 4
A186: JASS BOYS TRUCK LINES | B186: -4142 | C186: ='[1]Construction Worksheet'!AE73 -> 123500 | D186: M | E186: 1 | F186: =FetchComment(E186) -> 04-2A3324 | G186: 1 | H186: =FetchComment(G186) -> BAY CITIES PAVING & GRADING | I186: 4
A187: NAMAN TRUCKING | B187: 43 | C187: ='[1]Construction Worksheet'!AE82 -> 115830 | D187: M | E187: 1 | F187: =FetchComment(E187) -> 05-1H0604 | G187: 1 | H187: =FetchComment(G187) -> TEICHERT AND SON | I187: 5
A188: SEQUOIA CONSULTANT INC | B188: -4142 | C188: ='[1]Construction Worksheet'!AE95 -> 2258893.42 | D188: M | E188: 8 | F188: =FetchComment(E188) -> 08-1G0104 0-302404 11-419304 06-0Q9204 06-442554 06-0U1004 07-291404 08-1C0824 | G188: 5 | H188: =FetchComment(G188) -> GRANITE CONSTRUCTION COMPANY HAZARD CONSTRUCTION COMPANY GRIFFITH-ATKINSON JV STACY AND WITBECK INC FISHER SAND & GRAVEL CO | I188: 6,7,8,11
A189: SHK HAULING INC | B189: 43 | C189: ='[1]Construction Worksheet'!AE100 -> 132700 | D189: M | E189: 2 | F189: =FetchComment(E189) -> 10-1E5314 03-1H8404 | G189: 2 | H189: =FetchComment(G189) -> O.C. JONES & SONS INC GRANITE CONSTRUCTION | I189: 3,10
A195: Asian Pacific | B195: Column1 | C195: Dollars | D195: M/F | E195: Count of Contracts | F195: Contract Numbers | G195: Count of Primes | H195: Prime names | I195: Districts
A196: ACE FENCE COMPANY | B196: 33 | C196: ='[1]Construction Worksheet'!AI15 -> 3301651 | D196: F | E196: 10 | F196: =FetchComment(E196) -> 08-1F1434 06-0Q9204 07-260804 06-442554 11-427504 07-288304 06-360244 05-1J4704 07-293604 07-4V1004 | G196: 10 | H196: =FetchComment(G196) -> MYERS & SONS CONSTRUCTION GRIFFITH-ATKINSON JV POWELL CONSTRUCTORS INC GRANITE CONSTRUCTION COMPANY HMS CONSTRUCTION INC CHUMO CONSTRUCTION INC Security Paving Company, Inc. FEC FUTURE CONTRACTORS AND ENGINEERS, INC ORTIZ ENTERPRISES, INC. O'DONNELL CONSTRUCTION, INC. | I196: 5,6,7,8,11
A197: Apex Universal, Inc. | B197: 43 | C197: ='[1]Construction Worksheet'!AM7 -> 136787.44 | D197: M | E197: 1 | F197: =FetchComment(E197) -> Suyat, Christian@DOT: 05-1K8504 | G197: 1 | H197: =FetchComment(G197) -> Suyat, Christian@DOT: CAL STRIPE, INC. | I197: 5
A198: BAY AREA LIGHTWORKS, INC. | B198: -4142 | C198: ='[1]Construction Worksheet'!AM11 -> 1860050 | D198: M | E198: 1 | F198: =FetchComment(E198) -> Suyat, Christian@DOT: 04-3J8904 | G198: 1 | H198: =FetchComment(G198) -> Suyat, Christian@DOT: Bay Area Light workds, Inc | I198: 4
A199: CALIFORNIA PROFESSIONAL | B199: -4142 | C199: ='[1]Construction Worksheet'!AM29 -> 2581607 | D199: M | E199: 7 | F199: =FetchComment(E199) -> 06-0Y0304 08-1F1434 06-442554 12-0P94U4 06-0U0404 12-0S0404 06-0U79U4 | G199: 4 | H199: =FetchComment(G199) -> BUSH ENGINEERING INC MYERS & SONS CONSTRUCTION GRANITE CONSTRUCTION COMPANY BEADOR CONSTRUCTION COMPANY, INC. | I199: 5,6,8,12
A200: DIRT & AGGREGATE INTERCHANGE | B200: -4142 | C200: ='[1]Construction Worksheet'!AM42 -> 2241425 | D200: M | E200: 7 | F200: =FetchComment(E200) -> 01-0G4304 10-1C2804 01-0F4704 04-160304 04-4J3904 04-3J0504 01-0H4604 | G200: 7 | H200: =FetchComment(G200) -> REGE CONSTRUCTION INC SECURITY PAVING COMPANY MERCER FRASER COMPANY VIKING CONSTRUCTION COMPANY FBD VANGUARD CONSTRUCTION INC TENNYSON ELECTRIC INC GRANITE CONSTRUCTION COMPANY | I200: 1,4,10
A201: G SOSA CONSTRUCTION | B201: -4142 | C201: ='[1]Construction Worksheet'!AM48 -> 80320 | D201: M | E201: 1 | F201: =FetchComment(E201) -> 05-1E0104 | G201: 1 | H201: =FetchComment(G201) -> SPECIALTY CONSTRUCTION INC | I201: 5
A202: GLOBAL ROAD SEALING INC | B202: -4142 | C202: ='[1]Construction Worksheet'!AM67 -> 3535942 | D202: M | E202: 14 | F202: =FetchComment(E202) -> 06-0X0404 11-429704 07-302404 07-303904 11-419304 08-1F1434 06-0Q9204 04-4J3904 06-0U1004 06-0U4204 08-1G5504 12-0Q6404 08-0E33U4 05-1N3504 | G202: 10 | H202: =FetchComment(G202) -> GRANITE CONSTRUCTION COMPANY SELECT ELECTRIC INC SECURITY PAVING COMPANY HAZARD CONSTRUCTION COMPANY MYERS & SONS CONSTRUCTION GRIFFITH-ATKINSON JV FBD VANGUARD CONSTRUCTION INC RV CONCRETE CALPROMAX ENGINEERING INC AMES Construction, Inc. | I202: 4,5,6,7,8,11,12
A203: J Myrah Environmental, LLC | B203: -4142 | C203: ='[1]Construction Worksheet'!AI20 -> 2600 | D203: F | E203: 1 | F203: =FetchComment(E203) -> Suyat, Christian@DOT: 03-2H6304 | G203: 1 | H203: =FetchComment(G203) -> Suyat, Christian@DOT: SPECTRUM CONSTRUCTION GROUP, INC. | I203: 3
A204: LEGACY REINFORCING STEEL LLC | B204: -4142 | C204: ='[1]Construction Worksheet'!AM74 -> 2497115 | D204: M | E204: 2 | F204: =FetchComment(E204) -> 08-1C0824 07-293604 | G204: 2 | H204: =FetchComment(G204) -> FISHER SAND & GRAVEL CO ORTIZ ENTERPRISES, INC. | I204: 7,8
A205: LMS TRANSPORT | B205: 33 | C205: ='[1]Construction Worksheet'!AM93 -> 3012778.35 | D205: M | E205: 11 | F205: =FetchComment(E205) -> 08-1G0104 05-1F5004 07-302404 11-419304 12-0P0304 08-1F1434 06-442554 06-0U1004 08-1F7304 08-0E33U4 07-293604 | G205: 8 | H205: =FetchComment(G205) -> GRANITE CONSTRUCTION COMPANY CALPORTLAND CONSTRUCTION HAZARD CONSTRUCTION COMPANY AMERICAN CIVIL CONSTRUCTORS WEST COAST MYERS & SONS CONSTRUCTION SECURITY PAVING COMPANY AMES Construction, Inc. ORTIZ ENTERPRISES, INC. | I205: 5,6,7,8,11,12
A206: NILES ROCK TRANSPORT INC | B206: 43 | C206: ='[1]Construction Worksheet'!AI25 -> 140705 | D206: F | E206: 1 | F206: =FetchComment(E206) -> 05-1H0604 | G206: 1 | H206: =FetchComment(G206) -> TEICHERT AND SON | I206: 5
A207: NITTA EROSION CONTROL | B207: -4142 | C207: ='[1]Construction Worksheet'!AI36 -> 47323.8 | D207: F | E207: 3 | F207: =FetchComment(E207) -> 01-0G4304 04-0J5604 03-0J8804 | G207: 3 | H207: =FetchComment(G207) -> REGE CONSTRUCTION INC MYERS & SONS CONSTRUCTION INC Neil's Controlled Blast | I207: 1,3,4
A208: Norcal General Construction | B208: -4142 | C208: ='[1]Construction Worksheet'!AM97 -> 898389 | D208: M | E208: 1 | F208: =FetchComment(E208) ->  | G208: 1 | H208: =FetchComment(G208) -> Suyat, Christian@DOT: Norcal General Construction | I208: 4
A209: PRIME SUPPLY 1 | B209: 33 | C209: ='[1]Construction Worksheet'!AI43 -> 6049.29 | D209: F | E209: 2 | F209: =FetchComment(E209) -> 01-0G4304 01-0C4504 | G209: 2 | H209: =FetchComment(G209) -> REGE CONSTRUCTION INC MERCER-FRASER COMPANY | I209: 1
A210: S. KWOK ENGINEERS | B210: -4142 | C210: ='[1]Construction Worksheet'!AM105 -> 123100 | D210: M | E210: 2 | F210: =FetchComment(E210) -> 04-2A3324 04-3J0504 | G210: 2 | H210: =FetchComment(G210) -> BAY CITIES PAVING & GRADING INC TENNYSON ELECTRIC INC | I210: 4
A211: SRK ENGINEERING INC | B211: -4142 | C211: ='[1]Construction Worksheet'!AI50 -> 2400027 | D211: F | E211: 1 | F211: =FetchComment(E211) -> 08-1C8504 | G211: 1 | H211: =FetchComment(G211) -> GRANITE CONSTRUCTION | I211: 8
A212: TRAFFIC LOOPS CRACKFILLING INC | B212: -4142 | C212: ='[1]Construction Worksheet'!AI66 -> 2971650 | D212: F | E212: 9 | F212: =FetchComment(E212) -> 05-1H0604 06-0Q9204 06-0U4204 08-1G5504 12-0Q6404 06-0U5204 04-1J9704 06-0T3504 11-411404 | G212: 9 | H212: =FetchComment(G212) -> TEICHERT AND SON GRIFFITH-ATKINSON JV SECURIOTY PAVING COMPANY INC RV CONCRETE CALPROMAX ENGINEERING INC Granite Rock Company Granite Construction Company CAL VALLEY CONSTRUCTION, INC. Desilva gates | I212: 4,5,6,8,11,12
A215: Other | C215: Dollars | D215: M/F | E215: Count of Contracts | F215: Contract Numbers | G215: Count of Primes | H215: Prime names | I215: Districts
A217: ADH TECHNICAL SERVICES | B217: -4142 | C217: ='[1]Construction Worksheet'!AU9 -> 95545 | D217: M | E217: 2 | F217: =FetchComment(E217) -> 01-0B6204 01-0C6604 | G217: 2 | H217: =FetchComment(G217) -> CALIFORNIA HIGHWAY CONSTRUCTION GROUP S.T. RHOADES CONSTRUCTION INC | I217: 1
A221: Non Minority Women | B221: Column1 | C221: Dollars | D221: M/F | E221: Count of Contracts | F221: Contract Numbers | G221: Count of Primes | H221: Prime names | I221: Districts
A222: ACTION SWEEPING SERVICES INC | B222: 43 | C222: ='[1]Construction Worksheet'!AQ11 -> 114500 | D222: F | E222: 3 | F222: =FetchComment(E222) -> 01-0G33U4 03-1H8404 04-2K8404 | G222: 2 | H222: =FetchComment(G222) -> O.C. JONES & SONS INC GRANITE CONSTRUCTION COMPANY | I222: 1.3.4
A223: AMERICAN TRAFFIC SAFETY | B223: -4142 | C223: ='[1]Construction Worksheet'!AQ15 -> 518859.9 | D223: F | E223: 1 | F223: =FetchComment(E223) -> 10-1C5004 | G223: 1 | H223: =FetchComment(G223) -> SECURITY PAVING COMPANY | I223: 10
A224: AURORA INDUSTRIAL HYGIENE | B224: -4142 | C224: ='[1]Construction Worksheet'!AQ30 -> 11744 | D224: F | E224: 5 | F224: =FetchComment(E224) -> 01-0G33U4 07-317304 10-1E5314 07-260804 04-2K8404 | G224: 3 | H224: =FetchComment(G224) -> O.C. JONES & SONS INC PETERSON CHASE GENERAL ENGINEERING POWELL CONSTRUCTORS | I224: 1,4,7,10
A225: AVILA TRAFFIC SAFETY | B225: -4142 | C225: ='[1]Construction Worksheet'!AQ43 -> 1275288.4 | D225: F | E225: 9 | F225: =FetchComment(E225) -> 05-1F4904 05-1F5004 05-1E0104 06-442554 06-0S5104 05-1F9204 05-1N3504 09-366604 06-0U79U4 | G225: 9 | H225: =FetchComment(G225) -> SOUZA ENGINEERING CONTRACTING CALPORTLAND CONSTRUCTON SPECIALTY CONSTRUCTION INC GRANITE CONSTRUCTION COMPANY GRIFFITH COMPANY DISNEY CONSTRUCTION INC FBD VANGUARD CONSTRUCTION, INC. EVERLEVEL HOLDINGS, LLC SPECTRUM CONSTRUCTION GROUP, INC. | I225: 5,6,9
A226: B. L. EQUIPMENT RENTAL | B226: -4142 | C226: ='[1]Construction Worksheet'!AQ50 -> 62400 | D226: F | E226: 2 | F226: =FetchComment(E226) -> 10-1C0404 10-1C1704 | G226: 1 | H226: =FetchComment(G226) -> TEICHERT & SON | I226: 10
A227: BT TRUCKING INC | B227: 43 | C227: ='[1]Construction Worksheet'!AQ63 -> 7671819.4 | D227: F | E227: 7 | F227: =FetchComment(E227) -> 07-302404 05-1E0104 06-0Q9204 10-1C1704 06-0X5204 08-1C0824 05-1N3504 | G227: 7 | H227: =FetchComment(G227) -> GRANITE CONSTRUCTION COMPANY SPECIALTY CONSTRUCTION INC GRIFFITH-ATKINSON JV TEICHERT & SON INC GRIFFITH COMPANY FISHER SAND & GRAVEL CO FBD VANGUARD CONSTRUCTION, INC. | I227: 5,6,7,8,10
A228: CES | B228: -4142 | C228: ='[1]Construction Worksheet'!AQ70 -> 128425 | D228: F | E228: 2 | F228: =FetchComment(E228) -> 11-429704 08-1C0824 | G228: 2 | H228: =FetchComment(G228) -> SELECT ELECTRIC FISHER SAND & GRAVEL CO | I228: 8,11
A229: CMC TRAFFIC CONTROL | B229: -4142 | C229: ='[1]Construction Worksheet'!AQ77 -> 163604 | D229: F | E229: 3 | F229: =FetchComment(E229) -> 04-4J4204 04-3J8904 04-0J4704 | G229: 3 | H229: =FetchComment(G229) -> MAGGIORA & GHILOTTI INC Bay Area LighWorks, Inc. PAL GENERAL ENGINEERING INC | I229: 4
A230: COLUMBIA ELECTRIC INC | B230: 33 | C230: ='[1]Construction Worksheet'!AQ92 -> 3248780 | D230: F | E230: 3 | F230: =FetchComment(E230) -> 04-3J7004 04-4J4504 04-4J7304 | G230: 3 | H230: =FetchComment(G230) -> FBD VANGUARD CONSTRUCTION INC GHILOTTI BROS INC TEICHERT AND SON INC | I230: 4
A231: CONSTRUCTION SURVEY INC | B231: -4142 | C231: ='[1]Construction Worksheet'!AQ98 -> 8000 | D231: F | E231: 1 | F231: =FetchComment(E231) -> 04-4J4504 | G231: 1 | H231: =FetchComment(G231) -> GHILOTTI BROS INC | I231: 4
A232: CONTERA CONSTRUCTION COMPANY | B232: -4142 | C232: ='[1]Construction Worksheet'!AQ105 -> 21932466 | D232: F | E232: 1 | F232: =FetchComment(E232) -> 08-1C0824 | G232: 1 | H232: =FetchComment(G232) -> FISHER SAND & GRAVEL CO | I232: 8
A233: COOPER ENGINEERING | B233: -4142 | C233: ='[1]Construction Worksheet'!AQ117 -> 4602093 | D233: F | E233: 3 | F233: =FetchComment(E233) -> 12-0P0304 07-332604 08-1E0604 | G233: 3 | H233: =FetchComment(G233) -> AMERICAN CIVIL CONSTRUCTORS CHUMO CONSTRUCTION INC SULLY-MILLER CONTRACTING COMPANY | I233: 7,8,12
A234: DEES BURKE ENGINEERING | B234: -4142 | C234: ='[1]Construction Worksheet'!AQ134 -> 5449424.7 | D234: F | E234: 12 | F234: =FetchComment(E234) -> 10-1C2804 01-0F4704 03-0H4604 04-160304 10-1C5004 03-1F1504 04-2A3324 04-2J7204 03-1H8404 04-0J5604 08-1C0824 03-3H93U4 | G234: 10 | H234: =FetchComment(G234) -> SECURITY PAVING COMPANY MERCER-FRASER COMPANY MYERS & SONS CONSTRUCTION CALPORTLAND CONSTRUCTION DESILVA GATES CONSTRUCTION BAY CITIES PAVING & GRADING INC GORDON N BALL INC GRANITE CONSTRUCTION COMPANY FISHER SNAD & GRAVEL Teichert & Son | I234: 1,3,4,8,10
A235: DIVERSIFIED LANDSCAPE CO | B235: -4142 | C235: ='[1]Construction Worksheet'!AQ146 -> 1281566.1 | D235: F | E235: 7 | F235: =FetchComment(E235) -> 11-429704 07-332604 12-0P94U4 11-427504 07-288304 12-0Q6504 08-1L5904 | G235: 5 | H235: =FetchComment(G235) -> SELECT ELECTRIC CHUMO CONSTRUCTION INC GRANITE CONSTRUCTION HMS CONSTRUCTION INC International Line Builders, Inc. dba ILB Electric | I235: 7,8,11,12
A236: HILLSIDE DRILLING | B236: -4142 | C236: ='[1]Construction Worksheet'!AQ152 -> 3546631 | D236: F | E236: 2 | F236: =FetchComment(E236) -> 06-442554 04-0A7714 | G236: 2 | H236: =FetchComment(G236) -> GRANIITE CONSTRUCTION COMPANY GOLDEN STATE BRIDGE, INC. | I236: 4,6
A237: J & M LAND RESTORATION INC | B237: -4142 | C237: ='[1]Construction Worksheet'!AQ169 -> 895298.34 | D237: F | E237: 8 | F237: =FetchComment(E237) -> 05-1F4904 10-0L8704 10-1C1704 06-442554 03-1H0104 06-0U1004 06-0U4204 06-0U79U4 | G237: 5 | H237: =FetchComment(G237) -> SOUZA ENGINEERING CONTRACTING SECURITY PAVING COMPANY TEICHERT & SON GRANITE CONSTRUCTION COMPANY ROAD AND HIGHWAY BUILDERS LLC | I237: 3,5,6,10
A238: JAHN ENGINEERING INC | B238: -4142 | C238: ='[1]Construction Worksheet'!AQ176 -> 7200 | D238: F | E238: 3 | F238: =FetchComment(E238) -> 04-4J7304 06-442554 06-0U79U4 | G238: 3 | H238: =FetchComment(G238) -> TEICHER AND SON GRANITE CONSTRUCTION COMPANY ST. FRANCIS ELECTRIC, LLC | I238: 4,6
A239: JARRETT FOUNDATIONS INC | B239: -4142 | C239: ='[1]Construction Worksheet'!AQ187 -> 2729560 | D239: F | E239: 5 | F239: =FetchComment(E239) -> 10-1C2804 01-0F4704 03-0H4604 05-1F5004 10-0L8704 | G239: 4 | H239: =FetchComment(G239) -> SECURITY PAVING COMPANY MERCER FRASER COMPANY MYERS & SONS CONSTRUCTION CALPORTLAND CONSTRUCTION | I239: 1,3,5,10
A240: K & K CONSTRUCTION SUPPLY INC | B240: 33 | C240: ='[1]Construction Worksheet'!AQ196 -> 4276.87 | D240: F | E240: 2 | F240: =FetchComment(E240) -> 05-1H0604 03-1H8404 | G240: 2 | H240: =FetchComment(G240) -> TEICHERT AND SON GRANITE CONSTRUCTION COMPANY | I240: 3,5
A241: KELLEY EROSION CONTROL | B241: -4142 | C241: ='[1]Construction Worksheet'!AQ201 -> 93892.6 | D241: F | E241: 2 | F241: =FetchComment(E241) -> 03-2H0004 03-1H8404 | G241: 2 | H241: =FetchComment(G241) -> NEIL'S CONTROLLED BLASTING LP GRANITE CONSTRUCTION COMPANY | I241: 3
A242: KITTY'S SWEEPING | B242: 43 | C242: ='[1]Construction Worksheet'!AQ210 -> 158690 | D242: F | E242: 2 | F242: =FetchComment(E242) -> 04-0J5604 11-427504 | G242: 2 | H242: =FetchComment(G242) -> MYERS & SONS CONSTRUCTION INC HMS CONSTRUCTION INC | I242: 4,11
A243: KRITZ EXCAVATING & TRUCKING | B243: -4142 | C243: ='[1]Construction Worksheet'!AQ222 -> 171524 | D243: F | E243: 2 | F243: =FetchComment(E243) -> 05-1F4904 05-1J4704 | G243: 2 | H243: =FetchComment(G243) -> SOUZA ENGINEERING CONTRACTING FEC FUTURE CONTRACTORS AND ENGINEERS, INC. | I243: 5
A244: LA STEEL SERVICES IN | B244: -4142 | C244: ='[1]Construction Worksheet'!AQ234 -> 2158794.23 | D244: F | E244: 5 | F244: =FetchComment(E244) -> 08-1G0104 07-291404 08-1F7304 08-0E33U4 11-411404 | G244: 4 | H244: =FetchComment(G244) -> GRANITE CONSTRUCTION COMPANY STACY AND WITBECK SECURITY PAVING COMPANY AMES Constructions, Inc | I244: 7,8,11
A245: LIGHT SPEED RESOURCES | B245: 33 | C245: ='[1]Construction Worksheet'!AQ244 -> 929439.73 | D245: F | E245: 6 | F245: =FetchComment(E245) -> 10-0X5204 10-1E5314 04-2A3324 06-0U4204 04-3J0504 06-0T3504 | G245: 6 | H245: =FetchComment(G245) -> GEORGE REED INC O.C. JONES & SONS INC BAY CITIES PAVING & GRADING INC SECURITY PAVING COMPANY TENNYSON ELECTRIC INC CAL VALLEY CONSTRUCTION, INC. | I245: 4,6,10
A246: LINDY'S COLD PLANNING | B246: -4142 | C246: ='[1]Construction Worksheet'!AQ251 -> 1622707.46 | D246: F | E246: 4 | F246: =FetchComment(E246) -> 07-302404 08-1C8504 11-419304 08-0E33U4 | G246: 3 | H246: =FetchComment(G246) -> GRANITE CONSTRUCTION COMPANY HAZARD CONSTRUCTION COMPANY AMES Construction, Inc. | I246: 7,8,11
A247: LOWERS WELDING & FABRICATION | B247: -4142 | C247: ='[1]Construction Worksheet'!AQ256 -> 560990 | D247: F | E247: 1 | F247: =FetchComment(E247) -> 07-291404 | G247: 1 | H247: =FetchComment(G247) -> STACY AND WITBECK INC | I247: 7
A248: MCW TRAFFIC CONTROL | B248: -4142 | C248: ='[1]Construction Worksheet'!AQ261 -> 30075 | D248: F | E248: 1 | F248: =FetchComment(E248) -> 10-1C3704 | G248: 1 | H248: =FetchComment(G248) -> MIDSTATE BARRIER INC | I248: 10
A249: MOUNTAINVIEW BIOLOGICAL | B249: -4142 | C249: ='[1]Construction Worksheet'!AQ271 -> 58125.6 | D249: F | E249: 1 | F249: =FetchComment(E249) -> 08-1G0104 | G249: 1 | H249: =FetchComment(G249) -> GRANITE CONSTRUCTION COMPANY | I249: 8
A250: NATURAL RESOURCES MANAGEMENT | B250: -4142 | C250: ='[1]Construction Worksheet'!AQ276 -> 11936.7 | D250: F | E250: 1 | F250: =FetchComment(E250) -> 01-0F6804 | G250: 1 | H250: =FetchComment(G250) -> R BROWN CONSTRUCTION COMPANY INC | I250: 1
A251: PAVEMENT MANAGEMENT | B251: -4142 | C251: ='[1]Construction Worksheet'!AQ282 -> 26600 | D251: F | E251: 3 | F251: =FetchComment(E251) -> 04-269804 05-1J4704 05-1N3504 | G251: 2 | H251: =FetchComment(G251) -> FBD VANGUARD CONSTRUCTION FEC FUTURE CONTRACTORS AND ENGINEERS, INC. | I251: 4, 5
A252: PAYCO SPECIALTIES | B252: -4142 | C252: ='[1]Construction Worksheet'!AQ301 -> 863830.85 | D252: F | E252: 10 | F252: =FetchComment(E252) -> 11-429704 11-419304 12-0P0304 11-080284 12-0M82U4 11-424704 11-427504 11-412204 11-411404 11-4116U4 | G252: 8 | H252: =FetchComment(G252) -> SELECT ELECTRIC HAZARD CONSTRUCTION COMPANY AMERICAN CIVIL CONSTRUCTORS WEST COAST SPECTRUM CONSTRUCTION GROUP PAL GENERAL ENGINEERING INC HMS CONSTRUCTION INC DESILVA GATES CONSTRUCTION GRANITE CONSTRUCTION COMPANY | I252: 11,12
A253: PC & N CONSTRUCTION | B253: 33 | C253: ='[1]Construction Worksheet'!AQ310 -> 171916 | D253: F | E253: 4 | F253: =FetchComment(E253) -> 04-0J5304 04-2J7204 03-2H1104 06-0U79U4 | G253: 3 | H253: =FetchComment(G253) -> O.C. JONES & SONS INC GORDON N BALL INC SPECTRUM CONSTRUCTION GROUP, INC. | I253: 3,4,6
A254: PINNACLE GRINDING | B254: -4142 | C254: ='[1]Construction Worksheet'!AQ314 -> 4200 | D254: F | E254: 1 | F254: =FetchComment(E254) -> 01-0G4304 | G254: 1 | H254: =FetchComment(G254) -> REGE CONSTRUCTION INC | I254: 1
A255: Price Stage Line, LLC | B255: 33 | C255: ='[1]Construction Worksheet'!AQ319 -> 2538900 | D255: F | E255: 1 | F255: =FetchComment(E255) -> Suyat, Christian@DOT: 06-360244 | G255: 1 | H255: =FetchComment(G255) -> Suyat, Christian@DOT: Security Paving Company | I255: 6
A256: Quality Hydroseeding & Restoration | B256: -4142 | C256: ='[1]Construction Worksheet'!AQ324 -> 44739 | D256: F | E256: 1 | F256: =FetchComment(E256) -> Suyat, Christian@DOT: 08-0E33U4 | G256: 1 | H256: =FetchComment(G256) -> Suyat, Christian@DOT: AMES Constructions, Inc. | I256: 8
A257: ROLL N' ROCK CONSTRUCTION | B257: -4142 | C257: ='[1]Construction Worksheet'!AQ345 -> 1733591.5 | D257: F | E257: 9 | F257: =FetchComment(E257) -> 01-0G4304 10-1C2804 01-0C5704 01-0F4704 01-0G33U4 01-0C6604 01-0C4504 03-0H7204 02-4F2204 | G257: 7 | H257: =FetchComment(G257) -> SECURITY PAVING COMPANY REGE CONSTRUCTION INC MERCER FRASER COMPANY O.C. JONES & SONS S.T. RHOADES CONSTRCTION INC HIGHWAY SPECIALTY COMPANY INC MCCULLOUGH CONSTRUCTION INC | I257: 1,2,3,10
A258: ROUCH REBAR INC | B258: -4142 | C258: ='[1]Construction Worksheet'!AQ351 -> 621048.06 | D258: F | E258: 1 | F258: =FetchComment(E258) -> 09-360704 | G258: 1 | H258: =FetchComment(G258) -> POWELL CONSTRUCTORS INC | I258: 9
A259: RUPERT CONSTRUCTION SUPPLY | B259: 33 | C259: ='[1]Construction Worksheet'!AQ366 -> 875314.55 | D259: F | E259: 8 | F259: =FetchComment(E259) -> 01-0F4704 03-0H4604 04-2J7204 09-360704 04-0J5604 08-0E33U4 04-4G2104 03-3H93U4 | G259: 6 | H259: =FetchComment(G259) -> MERCER FRASER COMPANY MYERS & SONS CONSTRUCTION LLC GORDON N BALL INC POWELL CONSTRUCTORS INC AMES Construction Teichert & Son. | I259: 1,3,4,8,9
A260: SAFEGUARD FENCE | B260: 33 | C260: ='[1]Construction Worksheet'!AQ372 -> 205000 | D260: F | E260: 1 | F260: =FetchComment(E260) -> 09-213414 | G260: 1 | H260: =FetchComment(G260) -> ALCORN FENCE COMPANY | I260: 9
A261: SCHOTKA CONSTRUCTION | B261: -4142 | C261: ='[1]Construction Worksheet'!AQ389 -> 188911 | D261: F | E261: 4 | F261: =FetchComment(E261) -> 04-2G4604 04-2A3324 04-2J7204 04-4J4204 | G261: 4 | H261: =FetchComment(G261) -> CALIFORNIA HIGHWAY CONSTRUCTION BAY CITIES PAVING & GRADING INC GORDON N BALL INC MAGGIORA & GHILOTTI | I261: 4
A262: SO CAL TRAFFIC | B262: -4142 | C262: ='[1]Construction Worksheet'!AQ395 -> 883160 | D262: F | E262: 1 | F262: =FetchComment(E262) -> 08-1C8504 | G262: 1 | H262: =FetchComment(G262) -> GRANITE CONSTRUCTION COMPANY | I262: 8
... 50 more rows
